[Event "Titled Tuesday Blitz June 28 Early 2022"]
[White "Yuan, Qingyu"]
[Black "Melkumyan, Hrant"]
[WhiteFideId "8609772"]
[BlackFideId "13302485"]
[WhiteElo "2741"]
[BlackElo "2907"]
[Result "0-1"]
[Round "08"]
[TimeControl "180+1"]
[Date "2022.06.28"]
[WhiteClock "0:00:01"]
[BlackClock "0:00:24"]

1. e4 {[%clk 0:03:00]}  c6 {[%clk 0:02:59]} 2. Nf3 {[%clk 0:03:01]}  d5 {[%clk 0:03:00]} 3. Nc3 {[%clk 0:03:01]}  Bg4 {[%clk 0:03:00]} 4. h3 {[%clk 0:03:01]}  Bxf3 {[%clk 0:03:01]} 5. Qxf3 {[%clk 0:03:02]}  e6 {[%clk 0:03:02]} 6. Be2 {[%clk 0:02:57]}  Nd7 {[%clk 0:03:02]} 7. d4 {[%clk 0:02:56]}  dxe4 {[%clk 0:02:53]} 8. Nxe4 {[%clk 0:02:55]}  Ngf6 {[%clk 0:02:54]} 9. Nd2 {[%clk 0:02:54]}  Bd6 {[%clk 0:02:52]} 10. Nc4 {[%clk 0:02:51]}  Bc7 {[%clk 0:02:52]} 11. a4 {[%clk 0:02:49]}  O-O {[%clk 0:02:52]} 12. O-O {[%clk 0:02:47]}  Re8 {[%clk 0:02:52]} 13. Bg5 {[%clk 0:02:33]}  Qb8 {[%clk 0:02:37]} 14. Rad1 {[%clk 0:02:16]}  Nd5 {[%clk 0:02:35]} 15. c3 {[%clk 0:02:07]}  Bf4 {[%clk 0:02:33]} 16. Bh4 {[%clk 0:02:02]}  Qc7 {[%clk 0:02:24]} 17. Bd3 {[%clk 0:01:58]}  g6 {[%clk 0:02:22]} 18. Rfe1 {[%clk 0:01:55]}  a6 {[%clk 0:02:18]} 19. a5 {[%clk 0:01:49]}  Rac8 {[%clk 0:01:59]} 20. Bc2 {[%clk 0:01:48]}  Qb8 {[%clk 0:01:56]} 21. b4 {[%clk 0:01:40]}  Bh2+ {[%clk 0:01:50]} 22. Kh1 {[%clk 0:01:40]}  Bc7 {[%clk 0:01:51]} 23. Bb3 {[%clk 0:01:33]}  Bd8 {[%clk 0:01:38]} 24. Bg3 {[%clk 0:01:32]}  Bc7 {[%clk 0:01:39]} 25. Bh4 {[%clk 0:01:14]}  Rf8 {[%clk 0:01:36]} 26. Bg5 {[%clk 0:01:11]}  Bf4 {[%clk 0:01:31]} 27. Bh4 {[%clk 0:01:12]}  Rce8 {[%clk 0:01:31]} 28. Re2 {[%clk 0:01:06]}  Bc7 {[%clk 0:01:30]} 29. Rde1 {[%clk 0:01:05]}  Bd8 {[%clk 0:01:24]} 30. Bg3 {[%clk 0:01:04]}  Bc7 {[%clk 0:01:25]} 31. Bh4 {[%clk 0:01:00]}  Qc8 {[%clk 0:01:14]} 32. Bg5 {[%clk 0:00:58]}  Kg7 {[%clk 0:00:57]} 33. Qe4 {[%clk 0:00:44]}  Rh8 {[%clk 0:00:52]} 34. Qf3 {[%clk 0:00:41]}  Qb8 {[%clk 0:00:52]} 35. Ne5 {[%clk 0:00:26]}  Nxe5 {[%clk 0:00:52]} 36. dxe5 {[%clk 0:00:27]}  Bd8 {[%clk 0:00:52]} 37. Bd2 {[%clk 0:00:22]}  Be7 {[%clk 0:00:53]} 38. Re4 {[%clk 0:00:20]}  Rd8 {[%clk 0:00:53]} 39. R1e2 {[%clk 0:00:20]}  Qc7 {[%clk 0:00:51]} 40. g3 {[%clk 0:00:17]}  c5 {[%clk 0:00:51]} 41. Kg2 {[%clk 0:00:16]}  h5 {[%clk 0:00:48]} 42. h4 {[%clk 0:00:16]}  Qc6 {[%clk 0:00:45]} 43. Ba2 {[%clk 0:00:12]}  Rd7 {[%clk 0:00:44]} 44. Bb3 {[%clk 0:00:08]}  Rhd8 {[%clk 0:00:43]} 45. Be1 {[%clk 0:00:09]}  b5 {[%clk 0:00:38]} 46. axb6 {[%clk 0:00:06]}  Nxb6 {[%clk 0:00:38]} 47. Kh2 {[%clk 0:00:03]}  Rd3 {[%clk 0:00:37]} 48. Qf4 {[%clk 0:00:02]}  cxb4 {[%clk 0:00:33]} 49. Bd2 {[%clk 0:00:02]}  Rxd2 {[%clk 0:00:26]} 50. Rxd2 {[%clk 0:00:01]}  Rxd2 {[%clk 0:00:26]} 51. Qxd2 {[%clk 0:00:01]}  Qxe4 {[%clk 0:00:27]} 52. cxb4 {[%clk 0:00:02]}  Qxb4 {[%clk 0:00:26]} 53. Qe3 {[%clk 0:00:02]}  a5 {[%clk 0:00:27]} 54. Bc2 {[%clk 0:00:02]}  Nd5 {[%clk 0:00:27]} 55. Qf3 {[%clk 0:00:02]}  Qc3 {[%clk 0:00:27]} 56. Qe4 {[%clk 0:00:02]}  Qc5 {[%clk 0:00:23]} 57. Kg2 {[%clk 0:00:03]}  Nb4 {[%clk 0:00:24]} 58. Bb3 {[%clk 0:00:03]}  Nc6 {[%clk 0:00:23]} 59. f4 {[%clk 0:00:02]}  Nd4 {[%clk 0:00:24]} 60. Bd1 {[%clk 0:00:01]}  Nf5 {[%clk 0:00:24]} 0-1


[Site "https://www.chess.com"]

[Event "Titled Tuesday Blitz June 28 Early 2022"]
[White "Adewumi, Tanitoluwa"]
[Black "Fecker, Noah"]
[WhiteFideId "30966396"]
[BlackFideId "1334263"]
[WhiteElo "2666"]
[BlackElo "2312"]
[Result "0-1"]
[Round "09"]
[TimeControl "180+1"]
[Date "2022.06.28"]
[WhiteClock "0:00:01"]
[BlackClock "0:00:39"]

1. d4 {[%clk 0:02:29]}  Nf6 {[%clk 0:02:56]} 2. c4 {[%clk 0:02:26]}  c5 {[%clk 0:02:55]} 3. Nf3 {[%clk 0:02:17]}  cxd4 {[%clk 0:02:54]} 4. Nxd4 {[%clk 0:02:17]}  e5 {[%clk 0:02:55]} 5. Nf3 {[%clk 0:02:16]}  Nc6 {[%clk 0:02:54]} 6. Nc3 {[%clk 0:02:17]}  Bb4 {[%clk 0:02:53]} 7. Bd2 {[%clk 0:02:13]}  d5 {[%clk 0:02:53]} 8. cxd5 {[%clk 0:02:05]}  Nxd5 {[%clk 0:02:53]} 9. Nxd5 {[%clk 0:01:38]}  Qxd5 {[%clk 0:02:54]} 10. Bxb4 {[%clk 0:01:38]}  Qxd1+ {[%clk 0:02:45]} 11. Kxd1 {[%clk 0:01:11]}  Nxb4 {[%clk 0:02:45]} 12. Nxe5 {[%clk 0:01:12]}  Be6 {[%clk 0:02:44]} 13. a3 {[%clk 0:01:07]}  O-O-O+ {[%clk 0:02:03]} 14. Kc1 {[%clk 0:00:57]}  Bb3 {[%clk 0:01:35]} 15. Nd3 {[%clk 0:00:51]}  Nxd3+ {[%clk 0:01:30]} 16. exd3 {[%clk 0:00:52]}  Kb8 {[%clk 0:01:30]} 17. Kd2 {[%clk 0:00:34]}  Rc8 {[%clk 0:01:30]} 18. d4 {[%clk 0:00:13]}  Rc2+ {[%clk 0:01:28]} 19. Ke3 {[%clk 0:00:12]}  Re8+ {[%clk 0:01:27]} 20. Kf3 {[%clk 0:00:12]}  Rxb2 {[%clk 0:01:23]} 21. Bd3 {[%clk 0:00:09]}  Bd5+ {[%clk 0:01:23]} 22. Kg3 {[%clk 0:00:08]}  Rb3 {[%clk 0:01:23]} 23. Rad1 {[%clk 0:00:04]}  Bc4 {[%clk 0:01:23]} 24. f3 {[%clk 0:00:03]}  Bxd3 {[%clk 0:01:20]} 25. d5 {[%clk 0:00:03]}  Rd8 {[%clk 0:01:18]} 26. Kf4 {[%clk 0:00:02]}  Rxd5 {[%clk 0:01:18]} 27. Rhe1 {[%clk 0:00:02]}  Rxa3 {[%clk 0:00:58]} 28. Re8+ {[%clk 0:00:02]}  Kc7 {[%clk 0:00:58]} 29. Re7+ {[%clk 0:00:02]}  Rd7 {[%clk 0:00:57]} 30. Re8 {[%clk 0:00:01]}  Bb5 {[%clk 0:00:51]} 31. Rc1+ {[%clk 0:00:01]}  Bc6 {[%clk 0:00:51]} 32. Re5 {[%clk 0:00:01]}  Ra4+ {[%clk 0:00:51]} 33. Kg3 {[%clk 0:00:02]}  f6 {[%clk 0:00:50]} 34. Rh5 {[%clk 0:00:03]}  h6 {[%clk 0:00:51]} 35. Rf5 {[%clk 0:00:03]}  Ra2 {[%clk 0:00:49]} 36. Rfc5 {[%clk 0:00:03]}  a5 {[%clk 0:00:48]} 37. Re1 {[%clk 0:00:03]}  a4 {[%clk 0:00:48]} 38. Re3 {[%clk 0:00:04]}  Rdd2 {[%clk 0:00:46]} 39. Ra5 {[%clk 0:00:03]}  Rxg2+ {[%clk 0:00:45]} 40. Kf4 {[%clk 0:00:04]}  Rxh2 {[%clk 0:00:45]} 41. Re7+ {[%clk 0:00:04]}  Kb6 {[%clk 0:00:45]} 42. Ra8 {[%clk 0:00:05]}  Rh4+ {[%clk 0:00:43]} 43. Kf5 {[%clk 0:00:05]}  g5 {[%clk 0:00:43]} 44. Kxf6 {[%clk 0:00:05]}  Rf4+ {[%clk 0:00:43]} 45. Kg6 {[%clk 0:00:06]}  Rxf3 {[%clk 0:00:44]} 46. Kxh6 {[%clk 0:00:06]}  g4 {[%clk 0:00:44]} 47. Re4 {[%clk 0:00:06]}  Bxe4 {[%clk 0:00:44]} 48. Kg5 {[%clk 0:00:04]}  g3 {[%clk 0:00:44]} 49. Kh4 {[%clk 0:00:05]}  g2 {[%clk 0:00:44]} 50. Rg8 {[%clk 0:00:03]}  Rf4+ {[%clk 0:00:42]} 51. Kh3 {[%clk 0:00:03]}  Ra1 {[%clk 0:00:41]} 52. Rg7 {[%clk 0:00:01]}  Rh1+ {[%clk 0:00:39]} 0-1


[Site "https://www.chess.com"]

[Event "Titled Tuesday Blitz June 28 Early 2022"]
[White "Ajay Krishna, S"]
[Black "Ismagilov, Damir"]
[WhiteFideId "5096430"]
[BlackFideId "34199982"]
[WhiteElo "2247"]
[BlackElo "2138"]
[Result "0-1"]
[Round "09"]
[TimeControl "180+1"]
[Date "2022.06.28"]
[WhiteClock "0:00:26"]
[BlackClock "0:00:33"]

1. d4 {[%clk 0:03:00]}  Nf6 {[%clk 0:02:59]} 2. c4 {[%clk 0:03:00]}  e6 {[%clk 0:03:00]} 3. Nf3 {[%clk 0:02:59]}  d5 {[%clk 0:03:00]} 4. g3 {[%clk 0:02:59]}  dxc4 {[%clk 0:03:00]} 5. Bg2 {[%clk 0:02:58]}  Bb4+ {[%clk 0:03:01]} 6. Bd2 {[%clk 0:02:58]}  a5 {[%clk 0:03:02]} 7. O-O {[%clk 0:02:55]}  O-O {[%clk 0:03:02]} 8. a4 {[%clk 0:02:50]}  c6 {[%clk 0:02:37]} 9. e3 {[%clk 0:02:43]}  Ra6 {[%clk 0:02:26]} 10. Ne5 {[%clk 0:02:16]}  b5 {[%clk 0:02:25]} 11. b3 {[%clk 0:02:15]}  Bxd2 {[%clk 0:02:20]} 12. Nxd2 {[%clk 0:02:08]}  c3 {[%clk 0:02:20]} 13. Ndf3 {[%clk 0:01:54]}  b4 {[%clk 0:02:18]} 14. Ne1 {[%clk 0:01:54]}  c5 {[%clk 0:02:00]} 15. dxc5 {[%clk 0:01:50]}  Qc7 {[%clk 0:02:00]} 16. N1d3 {[%clk 0:01:42]}  Nbd7 {[%clk 0:01:59]} 17. Nxd7 {[%clk 0:01:34]}  Nxd7 {[%clk 0:02:00]} 18. c6 {[%clk 0:01:32]}  Nb8 {[%clk 0:02:00]} 19. Nc5 {[%clk 0:01:22]}  Rb6 {[%clk 0:01:58]} 20. Qh5 {[%clk 0:01:16]}  Nxc6 {[%clk 0:01:55]} 21. Ne4 {[%clk 0:01:13]}  Qe5 {[%clk 0:01:43]} 22. Qe2 {[%clk 0:01:12]}  Ba6 {[%clk 0:01:41]} 23. Qc2 {[%clk 0:01:09]}  Bxf1 {[%clk 0:01:40]} 24. Rxf1 {[%clk 0:01:09]}  Rd8 {[%clk 0:01:37]} 25. f4 {[%clk 0:01:08]}  Qc7 {[%clk 0:01:31]} 26. f5 {[%clk 0:01:01]}  exf5 {[%clk 0:01:29]} 27. Rxf5 {[%clk 0:01:01]}  Ne7 {[%clk 0:01:29]} 28. Rxa5 {[%clk 0:00:58]}  f5 {[%clk 0:01:13]} 29. Ng5 {[%clk 0:00:45]}  Rbd6 {[%clk 0:01:05]} 30. Bf1 {[%clk 0:00:34]}  Qxa5 {[%clk 0:01:01]} 31. Bc4+ {[%clk 0:00:33]}  Kf8 {[%clk 0:00:32]} 32. Nxh7+ {[%clk 0:00:25]}  Ke8 {[%clk 0:00:31]} 33. Bb5+ {[%clk 0:00:26]}  Qxb5 {[%clk 0:00:32]} 34. axb5 {[%clk 0:00:26]}  Rd1+ {[%clk 0:00:32]} 35. Kf2 {[%clk 0:00:25]}  R1d2+ {[%clk 0:00:32]} 36. Qxd2 {[%clk 0:00:26]}  cxd2 {[%clk 0:00:33]} 0-1


[Site "https://www.chess.com"]

[Event "Titled Tuesday Blitz June 28 Early 2022"]
[White "Aradhya, Garg"]
[Black "Gatterer, Florian"]
[WhiteFideId "25006746"]
[BlackFideId "811688"]
[WhiteElo "2203"]
[BlackElo "2218"]
[Result "1-0"]
[Round "09"]
[TimeControl "180+1"]
[Date "2022.06.28"]
[WhiteClock "0:00:12"]
[BlackClock "0:00:03"]

1. d4 {[%clk 0:02:59]}  e6 {[%clk 0:02:02]} 2. Nf3 {[%clk 0:02:58]}  Nf6 {[%clk 0:01:59]} 3. c4 {[%clk 0:02:56]}  d5 {[%clk 0:01:54]} 4. Nc3 {[%clk 0:02:54]}  c5 {[%clk 0:01:52]} 5. e3 {[%clk 0:02:53]}  Nc6 {[%clk 0:01:49]} 6. a3 {[%clk 0:02:52]}  cxd4 {[%clk 0:01:41]} 7. exd4 {[%clk 0:02:53]}  dxc4 {[%clk 0:01:41]} 8. Bxc4 {[%clk 0:02:51]}  Be7 {[%clk 0:01:41]} 9. O-O {[%clk 0:02:50]}  O-O {[%clk 0:01:40]} 10. Re1 {[%clk 0:02:48]}  b6 {[%clk 0:01:40]} 11. d5 {[%clk 0:02:47]}  exd5 {[%clk 0:01:25]} 12. Nxd5 {[%clk 0:02:45]}  Nxd5 {[%clk 0:01:25]} 13. Bxd5 {[%clk 0:02:37]}  Bb7 {[%clk 0:01:25]} 14. Bf4 {[%clk 0:02:37]}  Bf6 {[%clk 0:01:18]} 15. Rc1 {[%clk 0:02:35]}  Rc8 {[%clk 0:01:13]} 16. b4 {[%clk 0:02:10]}  Qd7 {[%clk 0:01:00]} 17. Rc2 {[%clk 0:01:36]}  Rcd8 {[%clk 0:00:54]} 18. Rd2 {[%clk 0:01:35]}  Qf5 {[%clk 0:00:53]} 19. Re4 {[%clk 0:01:15]}  Na5 {[%clk 0:00:46]} 20. Bxb7 {[%clk 0:01:10]}  Rxd2 {[%clk 0:00:38]} 21. Qxd2 {[%clk 0:01:01]}  Nxb7 {[%clk 0:00:36]} 22. Qe2 {[%clk 0:01:01]}  Nd8 {[%clk 0:00:34]} 23. Bd6 {[%clk 0:00:58]}  Ne6 {[%clk 0:00:29]} 24. Bxf8 {[%clk 0:00:56]}  Kxf8 {[%clk 0:00:29]} 25. h3 {[%clk 0:00:56]}  h6 {[%clk 0:00:29]} 26. Qc4 {[%clk 0:00:52]}  Kg8 {[%clk 0:00:28]} 27. Re1 {[%clk 0:00:50]}  Kh8 {[%clk 0:00:28]} 28. Qe4 {[%clk 0:00:48]}  Qh5 {[%clk 0:00:24]} 29. Rc1 {[%clk 0:00:38]}  g6 {[%clk 0:00:19]} 30. Rc6 {[%clk 0:00:33]}  Kg7 {[%clk 0:00:17]} 31. Rxe6 {[%clk 0:00:32]}  fxe6 {[%clk 0:00:18]} 32. Qxe6 {[%clk 0:00:32]}  Qb5 {[%clk 0:00:15]} 33. Qe4 {[%clk 0:00:29]}  Qa4 {[%clk 0:00:14]} 34. Qd3 {[%clk 0:00:28]}  g5 {[%clk 0:00:14]} 35. Nd2 {[%clk 0:00:26]}  a5 {[%clk 0:00:14]} 36. Ne4 {[%clk 0:00:19]}  Be5 {[%clk 0:00:11]} 37. bxa5 {[%clk 0:00:19]}  bxa5 {[%clk 0:00:10]} 38. g3 {[%clk 0:00:18]}  Qd4 {[%clk 0:00:10]} 39. Qxd4 {[%clk 0:00:18]}  Bxd4 {[%clk 0:00:11]} 40. a4 {[%clk 0:00:19]}  Kf7 {[%clk 0:00:09]} 41. Kf1 {[%clk 0:00:18]}  Ke6 {[%clk 0:00:09]} 42. Ke2 {[%clk 0:00:19]}  Kd5 {[%clk 0:00:10]} 43. Kd3 {[%clk 0:00:20]}  Bb2 {[%clk 0:00:10]} 44. f4 {[%clk 0:00:19]}  gxf4 {[%clk 0:00:09]} 45. gxf4 {[%clk 0:00:19]}  Ba1 {[%clk 0:00:10]} 46. Ng3 {[%clk 0:00:17]}  Ke6 {[%clk 0:00:09]} 47. Ke4 {[%clk 0:00:17]}  Kf6 {[%clk 0:00:09]} 48. Nf5 {[%clk 0:00:17]}  Kg6 {[%clk 0:00:07]} 49. Ne7+ {[%clk 0:00:17]}  Kf6 {[%clk 0:00:07]} 50. Nc6 {[%clk 0:00:17]}  Bc3 {[%clk 0:00:07]} 51. Ne5 {[%clk 0:00:17]}  Be1 {[%clk 0:00:05]} 52. Ng4+ {[%clk 0:00:16]}  Kg6 {[%clk 0:00:05]} 53. f5+ {[%clk 0:00:16]}  Kg5 {[%clk 0:00:06]} 54. f6 {[%clk 0:00:16]}  Bb4 {[%clk 0:00:06]} 55. Ke5 {[%clk 0:00:15]}  h5 {[%clk 0:00:06]} 56. Ne3 {[%clk 0:00:14]}  Kh4 {[%clk 0:00:05]} 57. Nd5 {[%clk 0:00:12]}  Ba3 {[%clk 0:00:06]} 58. Nf4 {[%clk 0:00:12]}  Kg5 {[%clk 0:00:05]} 59. f7 {[%clk 0:00:12]}  Bf8 {[%clk 0:00:03]} 60. Ne6+ {[%clk 0:00:11]}  Kh4 {[%clk 0:00:03]} 61. Nxf8 {[%clk 0:00:11]}  Kxh3 {[%clk 0:00:04]} 62. Ng6 {[%clk 0:00:12]}  Kg4 {[%clk 0:00:03]} 63. f8=Q {[%clk 0:00:11]}  h4 {[%clk 0:00:04]} 64. Qf4+ {[%clk 0:00:10]}  Kh5 {[%clk 0:00:04]} 65. Qf5+ {[%clk 0:00:10]}  Kh6 {[%clk 0:00:04]} 66. Kf6 {[%clk 0:00:10]}  h3 {[%clk 0:00:03]} 67. Nf4 {[%clk 0:00:11]}  h2 {[%clk 0:00:03]} 68. Qg6# {[%clk 0:00:12]} 1-0


[Site "https://www.chess.com"]

[Event "Titled Tuesday Blitz June 28 Early 2022"]
[White "Bharath Subramaniyam H"]
[Black "Kopczynski, Michal"]
[WhiteFideId "46634827"]
[BlackFideId "1124200"]
[WhiteElo "2242"]
[BlackElo "2235"]
[Result "1-0"]
[Round "09"]
[TimeControl "180+1"]
[Date "2022.06.28"]
[WhiteClock "0:00:39"]
[BlackClock "0:00:03"]

1. d4 {[%clk 0:02:59]}  Nf6 {[%clk 0:03:00]} 2. Nf3 {[%clk 0:03:00]}  g6 {[%clk 0:03:00]} 3. Nc3 {[%clk 0:02:59]}  Bg7 {[%clk 0:03:01]} 4. e4 {[%clk 0:02:58]}  d6 {[%clk 0:03:01]} 5. Be2 {[%clk 0:02:59]}  O-O {[%clk 0:03:02]} 6. O-O {[%clk 0:02:59]}  c5 {[%clk 0:03:01]} 7. d5 {[%clk 0:02:58]}  Na6 {[%clk 0:02:59]} 8. a4 {[%clk 0:02:57]}  Nc7 {[%clk 0:02:59]} 9. h3 {[%clk 0:02:55]}  Rb8 {[%clk 0:02:59]} 10. Be3 {[%clk 0:02:53]}  a6 {[%clk 0:02:58]} 11. a5 {[%clk 0:02:54]}  b5 {[%clk 0:02:58]} 12. axb6 {[%clk 0:02:54]}  Rxb6 {[%clk 0:02:58]} 13. b3 {[%clk 0:02:46]}  Rb4 {[%clk 0:02:54]} 14. Bc4 {[%clk 0:02:20]}  e6 {[%clk 0:02:44]} 15. dxe6 {[%clk 0:02:10]}  Bxe6 {[%clk 0:02:44]} 16. Bxe6 {[%clk 0:02:09]}  Nxe6 {[%clk 0:02:43]} 17. Rxa6 {[%clk 0:02:06]}  Ne8 {[%clk 0:02:30]} 18. Nd5 {[%clk 0:01:43]}  Rxe4 {[%clk 0:02:29]} 19. Qd3 {[%clk 0:01:41]}  f5 {[%clk 0:02:10]} 20. Ra7 {[%clk 0:01:28]}  Qb8 {[%clk 0:01:34]} 21. Re7 {[%clk 0:01:24]}  Nf6 {[%clk 0:01:16]} 22. Nd2 {[%clk 0:01:19]}  Re5 {[%clk 0:00:59]} 23. Nxf6+ {[%clk 0:01:14]}  Bxf6 {[%clk 0:01:00]} 24. Rd7 {[%clk 0:01:13]}  d5 {[%clk 0:00:48]} 25. Nf3 {[%clk 0:01:07]}  d4 {[%clk 0:00:32]} 26. Bh6 {[%clk 0:01:00]}  Re4 {[%clk 0:00:22]} 27. Bxf8 {[%clk 0:00:57]}  Nxf8 {[%clk 0:00:23]} 28. Qc4+ {[%clk 0:00:50]}  Kh8 {[%clk 0:00:23]} 29. Rf7 {[%clk 0:00:51]}  Bg7 {[%clk 0:00:22]} 30. Ng5 {[%clk 0:00:51]}  Re8 {[%clk 0:00:16]} 31. Rb7 {[%clk 0:00:43]}  Qxb7 {[%clk 0:00:14]} 32. Nf7+ {[%clk 0:00:44]}  Qxf7 {[%clk 0:00:09]} 33. Qxf7 {[%clk 0:00:45]}  Re2 {[%clk 0:00:08]} 34. Ra1 {[%clk 0:00:42]}  h6 {[%clk 0:00:06]} 35. Ra7 {[%clk 0:00:40]}  Be5 {[%clk 0:00:03]} 36. Qxf8# {[%clk 0:00:39]} 1-0


[Site "https://www.chess.com"]

[Event "Titled Tuesday Blitz June 28 Early 2022"]
[White "Bolanos, Fernando"]
[Black "Heinemann, Josefine"]
[WhiteFideId "3304094"]
[BlackFideId "12900460"]
[WhiteElo "2048"]
[BlackElo "2300"]
[Result "1-0"]
[Round "09"]
[TimeControl "180+1"]
[Date "2022.06.28"]
[WhiteClock "0:00:06"]
[BlackClock "0:00:15"]

1. e4 {[%clk 0:03:00]}  c6 {[%clk 0:02:58]} 2. Nf3 {[%clk 0:02:59]}  d5 {[%clk 0:02:57]} 3. d3 {[%clk 0:02:59]}  dxe4 {[%clk 0:02:56]} 4. dxe4 {[%clk 0:03:00]}  Qxd1+ {[%clk 0:02:56]} 5. Kxd1 {[%clk 0:03:01]}  Nd7 {[%clk 0:02:57]} 6. c3 {[%clk 0:02:59]}  e5 {[%clk 0:02:54]} 7. Nfd2 {[%clk 0:02:58]}  f5 {[%clk 0:02:37]} 8. Bc4 {[%clk 0:02:34]}  Ngf6 {[%clk 0:02:34]} 9. Re1 {[%clk 0:02:14]}  f4 {[%clk 0:02:28]} 10. f3 {[%clk 0:02:05]}  Bc5 {[%clk 0:02:26]} 11. Kc2 {[%clk 0:02:04]}  Be3 {[%clk 0:02:26]} 12. b4 {[%clk 0:02:03]}  b5 {[%clk 0:02:21]} 13. Be2 {[%clk 0:01:54]}  a5 {[%clk 0:02:18]} 14. bxa5 {[%clk 0:01:47]}  Rxa5 {[%clk 0:02:17]} 15. Nb3 {[%clk 0:01:48]}  Ra8 {[%clk 0:02:11]} 16. Bxe3 {[%clk 0:01:47]}  fxe3 {[%clk 0:02:12]} 17. Bf1 {[%clk 0:01:46]}  Nb6 {[%clk 0:02:12]} 18. Rxe3 {[%clk 0:01:45]}  Be6 {[%clk 0:02:11]} 19. N1d2 {[%clk 0:01:40]}  Ke7 {[%clk 0:02:11]} 20. Ree1 {[%clk 0:01:27]}  Ra3 {[%clk 0:02:07]} 21. Nc5 {[%clk 0:01:21]}  Bxa2 {[%clk 0:02:03]} 22. Nd3 {[%clk 0:00:22]}  Rha8 {[%clk 0:01:51]} 23. Nb4 {[%clk 0:00:21]}  Kd7 {[%clk 0:01:50]} 24. Kb2 {[%clk 0:00:17]}  Na4+ {[%clk 0:00:58]} 25. Kxa3 {[%clk 0:00:17]}  Be6 {[%clk 0:00:58]} 26. c4 {[%clk 0:00:11]}  Kc7 {[%clk 0:00:52]} 27. Kb3 {[%clk 0:00:10]}  Nd7 {[%clk 0:00:50]} 28. Kc2 {[%clk 0:00:09]}  Ndc5 {[%clk 0:00:50]} 29. Nb3 {[%clk 0:00:07]}  Nxb3 {[%clk 0:00:45]} 30. Kxb3 {[%clk 0:00:08]}  Kb6 {[%clk 0:00:43]} 31. Kc2 {[%clk 0:00:05]}  bxc4 {[%clk 0:00:36]} 32. Reb1 {[%clk 0:00:06]}  Kc5 {[%clk 0:00:36]} 33. Na2 {[%clk 0:00:02]}  Rd8 {[%clk 0:00:20]} 34. Nc3 {[%clk 0:00:03]}  Nxc3 {[%clk 0:00:20]} 35. Kxc3 {[%clk 0:00:03]}  Rd4 {[%clk 0:00:19]} 36. Rd1 {[%clk 0:00:04]}  g5 {[%clk 0:00:18]} 37. Ra5+ {[%clk 0:00:04]}  Kb6 {[%clk 0:00:18]} 38. Raa1 {[%clk 0:00:04]}  Kc5 {[%clk 0:00:16]} 39. Be2 {[%clk 0:00:05]}  Bf7 {[%clk 0:00:15]} 40. Ra5+ {[%clk 0:00:05]}  Kb6 {[%clk 0:00:15]} 41. Rxe5 {[%clk 0:00:05]}  Rxd1 {[%clk 0:00:14]} 42. Bxd1 {[%clk 0:00:06]}  c5 {[%clk 0:00:15]} 43. Rxg5 {[%clk 0:00:06]} 1-0


[Site "https://www.chess.com"]

[Event "Titled Tuesday Blitz June 28 Early 2022"]
[White "Coelho, Ramyres Santana"]
[Black "Flynn, Jacob"]
[WhiteFideId "2120690"]
[BlackFideId "2509393"]
[WhiteElo "1888"]
[BlackElo "1896"]
[Result "1-0"]
[Round "09"]
[TimeControl "180+1"]
[Date "2022.06.28"]
[WhiteClock "0:00:06"]
[BlackClock "0:00:06"]

1. e4 {[%clk 0:01:42]}  e5 {[%clk 0:02:59]} 2. Nf3 {[%clk 0:01:40]}  Nc6 {[%clk 0:03:00]} 3. d4 {[%clk 0:01:40]}  exd4 {[%clk 0:03:00]} 4. Bc4 {[%clk 0:01:40]}  Nf6 {[%clk 0:03:01]} 5. e5 {[%clk 0:01:41]}  d5 {[%clk 0:03:00]} 6. Bb5 {[%clk 0:01:41]}  Ne4 {[%clk 0:03:01]} 7. Nxd4 {[%clk 0:01:41]}  Bd7 {[%clk 0:03:00]} 8. Bxc6 {[%clk 0:01:41]}  bxc6 {[%clk 0:03:00]} 9. O-O {[%clk 0:01:42]}  Bc5 {[%clk 0:02:57]} 10. f3 {[%clk 0:01:42]}  Ng5 {[%clk 0:02:57]} 11. f4 {[%clk 0:01:43]}  Ne4 {[%clk 0:02:57]} 12. Nc3 {[%clk 0:01:42]}  Nxc3 {[%clk 0:02:43]} 13. bxc3 {[%clk 0:01:43]}  Bb6 {[%clk 0:02:40]} 14. f5 {[%clk 0:01:40]}  c5 {[%clk 0:02:27]} 15. e6 {[%clk 0:01:36]}  cxd4 {[%clk 0:02:27]} 16. exd7+ {[%clk 0:01:35]}  Qxd7 {[%clk 0:02:27]} 17. Re1+ {[%clk 0:01:32]}  Kf8 {[%clk 0:02:28]} 18. Ba3+ {[%clk 0:01:30]}  Kg8 {[%clk 0:02:22]} 19. f6 {[%clk 0:01:17]}  dxc3+ {[%clk 0:02:04]} 20. Kh1 {[%clk 0:01:17]}  g6 {[%clk 0:01:55]} 21. Re7 {[%clk 0:01:11]}  Qf5 {[%clk 0:01:51]} 22. Qe2 {[%clk 0:01:02]}  h5 {[%clk 0:01:41]} 23. Rf1 {[%clk 0:00:42]}  Qg4 {[%clk 0:01:36]} 24. Re8+ {[%clk 0:00:35]}  Kh7 {[%clk 0:01:35]} 25. Qe7 {[%clk 0:00:22]}  Raxe8 {[%clk 0:00:42]} 26. Qxf7+ {[%clk 0:00:22]}  Kh6 {[%clk 0:00:42]} 27. Qg7+ {[%clk 0:00:11]}  Kg5 {[%clk 0:00:42]} 28. Bc1+ {[%clk 0:00:11]}  Be3 {[%clk 0:00:41]} 29. Bxe3+ {[%clk 0:00:10]}  Rxe3 {[%clk 0:00:41]} 30. f7 {[%clk 0:00:07]}  Rf8 {[%clk 0:00:11]} 31. Qxf8 {[%clk 0:00:06]}  Re2 {[%clk 0:00:06]} 32. Rg1 {[%clk 0:00:06]}  Rf2 {[%clk 0:00:05]} 33. Qd8+ {[%clk 0:00:04]}  Kh6 {[%clk 0:00:04]} 34. f8=Q+ {[%clk 0:00:04]}  Rxf8 {[%clk 0:00:05]} 35. Qxf8+ {[%clk 0:00:04]}  Kg5 {[%clk 0:00:06]} 36. Qe7+ {[%clk 0:00:04]}  Kh6 {[%clk 0:00:06]} 37. Qe3+ {[%clk 0:00:04]}  Kh7 {[%clk 0:00:06]} 38. Qxc3 {[%clk 0:00:04]}  Qf4 {[%clk 0:00:06]} 39. Qf3 {[%clk 0:00:03]}  Qe5 {[%clk 0:00:06]} 40. Rf1 {[%clk 0:00:03]}  c5 {[%clk 0:00:05]} 41. Qf7+ {[%clk 0:00:04]}  Kh6 {[%clk 0:00:06]} 42. Qf2 {[%clk 0:00:05]}  d4 {[%clk 0:00:06]} 43. Qf4+ {[%clk 0:00:05]}  Qxf4 {[%clk 0:00:06]} 44. Rxf4 {[%clk 0:00:06]}  Kg5 {[%clk 0:00:06]} 45. Rf7 {[%clk 0:00:06]}  Kg4 {[%clk 0:00:06]} 46. Rc7 {[%clk 0:00:06]} 1-0


[Site "https://www.chess.com"]

[Event "Titled Tuesday Blitz June 28 Early 2022"]
[White "Costachi, Mihnea"]
[Black "Kupervaser, Erez"]
[WhiteFideId "1217518"]
[BlackFideId "2814587"]
[WhiteElo "2476"]
[BlackElo "1832"]
[Result "1-0"]
[Round "09"]
[TimeControl "180+1"]
[Date "2022.06.28"]
[WhiteClock "0:02:17"]
[BlackClock "0:02:28"]

1. e4 {[%clk 0:03:00]}  Nf6 {[%clk 0:02:59]} 2. e5 {[%clk 0:03:00]}  Nd5 {[%clk 0:03:00]} 3. d4 {[%clk 0:03:01]}  d6 {[%clk 0:03:00]} 4. exd6 {[%clk 0:03:00]}  cxd6 {[%clk 0:03:00]} 5. Nf3 {[%clk 0:03:00]}  g6 {[%clk 0:03:00]} 6. h4 {[%clk 0:03:00]}  Bg7 {[%clk 0:02:57]} 7. h5 {[%clk 0:02:59]}  Nc6 {[%clk 0:02:55]} 8. c4 {[%clk 0:02:56]}  Nb6 {[%clk 0:02:53]} 9. h6 {[%clk 0:02:53]}  Bf6 {[%clk 0:02:53]} 10. d5 {[%clk 0:02:51]}  Na5 {[%clk 0:02:52]} 11. Nc3 {[%clk 0:02:41]}  O-O {[%clk 0:02:51]} 12. Nd2 {[%clk 0:02:37]}  Qc7 {[%clk 0:02:45]} 13. Nce4 {[%clk 0:02:33]}  Bf5 {[%clk 0:02:37]} 14. Nxf6+ {[%clk 0:02:28]}  exf6 {[%clk 0:02:38]} 15. Be2 {[%clk 0:02:23]}  Naxc4 {[%clk 0:02:30]} 16. Nxc4 {[%clk 0:02:17]}  Nxc4 {[%clk 0:02:31]} 17. O-O {[%clk 0:02:18]}  Nxb2 {[%clk 0:02:28]} 18. Bxb2 {[%clk 0:02:17]} 1-0


[Site "https://www.chess.com"]